bitfinex-derivatives/quotes_BTCF0:USTF0_20220103
["timestamp","ask_amount","ask_price","bid_price","bid_amount"]
[1641168000469,0.78535115,47294.0,47291.0,0.14033567]
[1641168001262,0.59435115,47294.0,47291.0,0.14033567]
[1641168002062,0.78535115,47294.0,47291.0,0.14033567]
[1641168003264,0.59435115,47294.0,47291.0,0.14033567]
[1641168003462,0.20022325,47296.0,47291.0,0.14033567]
[1641168004063,0.39022325,47296.0,47291.0,0.14033567]
[1641168005264,0.20022325,47296.0,47291.0,0.14033567]
[1641168005464,0.20022325,47296.0,47289.0,0.18]
[1641168005965,0.39022325,47296.0,47289.0,0.18]
[1641168006165,0.39022325,47296.0,47291.0,0.14033567]
[1641168006565,0.39022325,47296.0,47289.0,0.18]
[1641168007165,0.5329654,47296.0,47289.0,0.18]
[1641168007366,0.3429654,47296.0,47289.0,0.18]
[1641168008167,0.5339654,47296.0,47291.0,0.14033567]
[1641168008665,0.42289056,47294.0,47291.0,0.14033567]
[1641168009965,0.61389056,47294.0,47291.0,0.14033567]
[1641168011368,0.42289056,47294.0,47291.0,0.14033567]
[1641168011969,0.61489056,47294.0,47291.0,0.14033567]
[1641168013471,0.42289056,47294.0,47291.0,0.14033567]
[1641168014070,0.61489056,47294.0,47291.0,0.14033567]
[1641168014472,0.192,47294.0,47291.0,0.14033567]
[1641168015472,0.42284845,47299.0,47291.0,0.14033567]
[1641168016073,0.61184845,47299.0,47291.0,0.14033567]
[1641168017374,0.42284845,47299.0,47291.0,0.14033567]
[1641168017976,0.61184845,47299.0,47291.0,0.14033567]
[1641168019475,0.42284845,47299.0,47291.0,0.14033567]
[1641168019976,0.61284845,47299.0,47291.0,0.14033567]
[1641168020576,0.61284845,47299.0,47291.0,0.22468567]
[1641168020977,0.19,47299.0,47291.0,0.22468567]
[1641168021378,0.4228251,47301.0,47291.0,0.22468567]
[1641168021578,0.42290225,47293.0,47291.0,0.14033567]
[1641168021979,0.61290225,47293.0,47291.0,0.14033567]
[1641168023379,0.42290225,47293.0,47291.0,0.14033567]
[1641168023985,0.61490225,47293.0,47291.0,0.14033567]
[1641168024582,0.10160267,47292.0,47291.0,0.14033567]
[1641168024783,0.25936366,47290.0,47287.0,0.98116405]
[1641168024983,0.10160267,47292.0,47287.0,0.98116405]
[1641168025381,0.10160267,47292.0,47288.0,0.6005917]
[1641168025585,0.18,47299.0,47287.0,0.14033567]
[1641168025782,0.18,47296.0,47287.0,0.14033567]
[1641168025982,0.26448,47296.0,47287.0,0.14033567]
[1641168026183,0.08448,47296.0,47282.0,0.14033567]
[1641168026382,0.18,47290.0,47275.0,0.18]
[1641168026585,0.14033567,47285.0,47275.0,0.18]
[1641168027283,0.14033567,47285.0,47278.0,0.18]
[1641168028085,0.32733567,47285.0,47278.0,0.18]
[1641168028585,0.32733567,47285.0,47274.0,0.14033567]
[1641168028884,0.39246567,47285.0,47274.0,0.32033567]
[1641168029187,0.07561031,47284.0,47274.0,0.14033567]
[1641168029785,0.20546567,47285.0,47274.0,0.14033567]
[1641168030186,0.191,47284.0,47274.0,0.14033567]
[1641168030386,0.45668725,47284.0,47274.0,0.14033567]
[1641168030888,0.25897844,47280.0,47274.0,0.14033567]
[1641168032191,0.44597844,47280.0,47274.0,0.14033567]
[1641168032994,0.187,47280.0,47277.0,0.13426238]
[1641168033393,0.49885095,47280.0,47277.0,0.13426238]
[1641168034293,0.08983069,47279.0,47277.0,0.13426238]
[1641168034495,0.14033567,47278.0,47277.0,0.13426238]
[1641168036096,0.33133567,47278.0,47277.0,0.13426238]
[1641168036296,1.25499971,47278.0,47277.0,0.13426238]
[1641168037497,1.06399971,47278.0,47277.0,0.13426238]
[1641168038099,1.25299971,47278.0,47277.0,0.13426238]
[1641168038499,1.33003971,47278.0,47271.0,1.8344]
[1641168038699,0.18,47275.0,47266.0,0.84049534]
[1641168038900,0.18,47270.0,47269.0,0.3602196]
[1641168039299,0.24155512,47270.0,47260.0,0.70077838]
[1641168039499,0.32609867,47265.0,47260.0,0.70077838]
[1641168039701,0.39510867,47265.0,47260.0,0.70077838]
[1641168039901,0.06901,47265.0,47260.0,0.70077838]
[1641168040108,0.26001,47265.0,47260.0,0.70077838]
[1641168040600,0.40034567,47265.0,47257.0,1.44084915]
[1641168040799,0.33133567,47265.0,47254.0,0.33012967]
[1641168041000,0.33133567,47265.0,47256.0,1.20088826]
[1641168041201,0.33133567,47265.0,47256.0,1.27162826]
[1641168041599,0.14033567,47265.0,47256.0,1.27162826]
[1641168042203,0.33233567,47265.0,47256.0,1.27162826]
[1641168042400,0.33233567,47265.0,47256.0,0.07074]
[1641168043403,0.14033567,47265.0,47256.0,0.07074]
[1641168044202,0.33233567,47265.0,47256.0,0.07074]
[1641168045403,0.14033567,47265.0,47256.0,0.07074]
[1641168046205,0.33233567,47265.0,47256.0,0.07074]
[1641168046406,0.33233567,47265.0,47254.0,0.14033567]
[1641168047207,0.33233567,47265.0,47255.0,0.01202346]
[1641168047508,0.14033567,47265.0,47255.0,0.01202346]
[1641168048112,0.33133567,47265.0,47255.0,0.01202346]
[1641168048512,0.4662698,47265.0,47255.0,0.01202346]
[1641168049514,0.13074291,47263.0,47255.0,0.01202346]
[1641168050216,0.32274291,47263.0,47255.0,0.01202346]
[1641168050515,0.192,47263.0,47255.0,0.01202346]
[1641168051117,0.192,47263.0,47254.0,0.14033567]
[1641168051319,0.18,47262.0,47254.0,0.14033567]
[1641168052115,0.37,47262.0,47254.0,0.14033567]
[1641168052315,0.19,47262.0,47254.0,0.14033567]
[1641168052519,0.14033567,47260.0,47254.0,0.14033567]
[1641168054123,0.33233567,47260.0,47254.0,0.14033567]
[1641168054523,1.62033567,47260.0,47254.0,0.14033567]
[1641168054722,0.07617731,47259.0,47254.0,0.14033567]
[1641168056125,0.26817731,47259.0,47254.0,0.14033567]
[1641168057526,0.07617731,47259.0,47254.0,0.14033567]
[1641168058127,0.192,47259.0,47254.0,0.14033567]
[1641168059426,0.14033567,47260.0,47254.0,0.14033567]
[1641168060228,0.33133567,47260.0,47254.0,0.14033567]
[1641168060627,0.33133567,47260.0,47249.0,0.14033567]
[1641168060829,0.10496123,47253.0,47249.0,0.14033567]
[1641168061431,0.11396489,47252.0,47245.0,0.14033567]
[1641168062237,0.30696489,47252.0,47245.0,0.14033567]
[1641168064034,0.11396489,47252.0,47245.0,0.14033567]
[1641168064234,0.29596489,47252.0,47245.0,0.14033567]
[1641168064433,0.182,47252.0,47247.0,0.18]
[1641168064733,0.182,47252.0,47247.0,0.189794]
[1641168065337,0.182,47252.0,47251.0,0.18]
[1641168065537,0.14033567,47253.0,47251.0,0.26248]
[1641168065935,0.14033567,47260.0,47251.0,0.26248]
[1641168066134,0.177,47253.0,47251.0,0.26248]
[1641168066335,0.177,47253.0,47252.0,0.001]
[1641168066535,0.177,47253.0,47252.0,0.010794]
[1641168066934,0.0001,47253.0,47252.0,0.010794]
[1641168067135,0.0001,47253.0,47252.0,0.009794]
[1641168067336,0.14033567,47260.0,47251.0,1.42833567]
[1641168067535,0.14033567,47260.0,47251.0,1.51367567]
[1641168067735,0.14033567,47260.0,47251.0,0.40567567]
[1641168068138,0.14033567,47260.0,47251.0,0.59567567]
[1641168068338,0.14033567,47260.0,47252.0,1.108]
[1641168069841,0.14033567,47260.0,47251.0,0.32033567]
[1641168070241,0.14033567,47260.0,47252.0,0.19]
[1641168070646,0.14033567,47265.0,47252.0,0.19]
[1641168071646,0.14033567,47265.0,47251.0,0.32033567]
[1641168072245,0.21133567,47265.0,47251.0,0.51033567]
[1641168072647,0.21133567,47265.0,47251.0,1.61833567]
[1641168072946,1.40507126,47264.0,47251.0,1.61833567]
[1641168073147,0.35126782,47252.0,47251.0,1.61833567]
[1641168073346,1.418e-05,47254.0,47251.0,1.61833567]
[1641168073545,1.418e-05,47254.0,47251.0,0.32033567]
[1641168074145,1.418e-05,47254.0,47251.0,0.51033567]
[1641168074545,0.8196249,47255.0,47251.0,0.51033567]
[1641168074749,0.8196249,47254.0,47251.0,0.51033567]
[1641168075550,0.8196249,47259.0,47251.0,0.32033567]
[1641168076150,0.8196249,47259.0,47251.0,0.32933567]
[1641168076351,0.8196249,47259.0,47251.0,0.189]
[1641168076752,0.14033567,47256.0,47251.0,0.189]
[1641168077549,0.14033567,47256.0,47250.0,0.009794]
[1641168077751,0.09811501,47255.0,47250.0,0.009794]
[1641168078149,0.09811501,47255.0,47250.0,0.199794]
[1641168079651,0.09811501,47255.0,47250.0,0.009794]
[1641168079851,0.91773991,47255.0,47250.0,0.009794]
[1641168080253,1.08173991,47255.0,47250.0,0.198794]
[1641168080653,0.26211501,47255.0,47250.0,0.198794]
[1641168081157,0.164,47255.0,47250.0,0.198794]
[1641168081455,0.8196249,47255.0,47250.0,0.009794]
[1641168082355,1.04269622,47255.0,47250.0,0.199794]
[1641168082558,0.8196249,47254.0,47250.0,0.199794]
[1641168083558,0.58541362,47254.0,47250.0,0.009794]
[1641168083758,0.6489005,47254.0,47250.0,0.009794]
[1641168084159,0.66041362,47254.0,47250.0,0.201794]
[1641168084562,0.35154806,47252.0,47250.0,0.201794]
[1641168085461,0.35154806,47252.0,47245.0,0.28067134]
[1641168085863,0.35154806,47252.0,47246.0,0.01202655]
[1641168088164,0.35154806,47247.0,47246.0,0.01202655]
[1641168088366,0.35154806,47247.0,47246.0,0.20202655]
[1641168089571,0.35154806,47247.0,47246.0,0.01202655]
[1641168089971,0.35154806,47247.0,47245.0,0.28067134]
[1641168090172,0.58541362,47249.0,47245.0,0.28067134]
[1641168090374,0.58541362,47248.0,47246.0,1.52827033]
[1641168090774,0.58541362,47248.0,47246.0,1.51624328]
[1641168091575,0.58541362,47248.0,47246.0,1.32324328]
[1641168091975,0.35150659,47247.0,47246.0,1.32324328]
[1641168092275,0.35150659,47247.0,47246.0,1.51624328]
[1641168092573,0.35150659,47247.0,47246.0,1.52827037]
[1641168092776,0.58541362,47248.0,47246.0,1.52827037]
[1641168092974,0.58541362,47248.0,47246.0,1.51624328]
[1641168093676,0.58541362,47248.0,47246.0,1.32324328]
[1641168094279,0.58541362,47248.0,47246.0,1.51624328]
[1641168094678,0.58541362,47248.0,47246.0,1.52603728]
[1641168095284,0.58541362,47247.0,47246.0,1.52603728]
[1641168095483,0.58541362,47247.0,47246.0,1.32324328]
[1641168096290,0.58541362,47247.0,47246.0,1.51724328]
[1641168096485,0.58541362,47248.0,47246.0,1.51724328]
[1641168096985,0.58541362,47247.0,47246.0,0.194]
[1641168097586,0.58541362,47247.0,47245.0,1.60391462]
[1641168098387,0.58541362,47247.0,47245.0,1.79791462]
[1641168099487,0.58541362,47247.0,47245.0,1.60391462]
[1641168100388,0.58541362,47247.0,47245.0,1.79591462]
[1641168100587,0.8196249,47248.0,47245.0,1.79591462]
[1641168100588,0.58541362,47246.0,47245.0,1.79591462]
[1641168101688,0.58541362,47246.0,47245.0,1.60391462]
[1641168101888,0.58541362,47246.0,47245.0,1.46357895]
[1641168102388,0.58541362,47246.0,47245.0,1.65657895]
[1641168103393,0.58541362,47246.0,47245.0,0.33333567]
[1641168104195,0.58541362,47246.0,47245.0,0.14033567]
[1641168104394,0.58541362,47246.0,47245.0,0.33033567]
[1641168105595,0.58541362,47246.0,47245.0,0.14033567]
[1641168106396,0.58541362,47246.0,47245.0,0.33233567]
[1641168107598,0.58541362,47246.0,47245.0,0.14033567]
[1641168107801,0.83159283,47246.0,47245.0,0.14033567]
[1641168108199,0.83159283,47246.0,47245.0,0.14023567]
[1641168108400,1.01159283,47246.0,47244.0,1.24304624]
[1641168109202,1.01159283,47246.0,47240.0,1.43880935]
[1641168109203,0.30284611,47245.0,47240.0,1.43880935]
[1641168109404,0.48444116,47241.0,47240.0,1.20180935]
[1641168109602,1.70452928,47241.0,47240.0,0.64240935]
[1641168109809,1.68335116,47241.0,47239.0,0.13530196]
[1641168110004,1.70453081,47241.0,47239.0,0.13530196]
[1641168110303,1.89253081,47241.0,47238.0,0.13530196]
[1641168110502,1.108,47238.0,47235.0,0.25805357]
[1641168110707,0.32639626,47233.0,47228.0,1.56091991]
[1641168111004,0.18,47229.0,47228.0,1.56091991]
[1641168111205,0.56884392,47229.0,47228.0,1.56091991]
[1641168111427,0.56984392,47229.0,47228.0,1.56091991]
[1641168111608,1.67784785,47229.0,47228.0,0.81061991]
[1641168111807,0.56984785,47229.0,47228.0,0.81061991]
[1641168112305,0.75784785,47229.0,47228.0,0.81061991]
[1641168112505,0.75784785,47229.0,47222.0,0.02]
[1641168112706,0.18,47223.0,47222.0,0.02]
[1641168113106,0.32033567,47223.0,47222.0,0.02]
[1641168113705,0.32033567,47223.0,47203.0,1.68099067]
[1641168113706,0.5,47218.0,47203.0,0.35999067]
[1641168113909,0.18,47205.0,47203.0,0.35999067]
[1641168114106,0.001,47204.0,47192.0,3.66876143]
[1641168114307,0.08027,47205.0,47192.0,1.80106143]
[1641168114506,0.08027,47205.0,47193.0,0.01203803]
[1641168114705,0.08027,47205.0,47194.0,0.18]
[1641168114905,0.08027,47205.0,47196.0,0.18]
[1641168115106,0.14033567,47207.0,47196.0,0.14033567]
[1641168115306,0.14033567,47212.0,47201.0,0.18]
[1641168115506,0.14033567,47212.0,47202.0,0.009794]
[1641168116307,0.33033567,47212.0,47203.0,0.18]
[1641168116808,0.33033567,47212.0,47202.0,0.009794]
[1641168117208,0.33033567,47212.0,47207.0,0.18]
[1641168117409,0.33033567,47212.0,47207.0,0.24491]
[1641168117607,0.14033567,47212.0,47207.0,0.24491]
[1641168117809,0.14033567,47212.0,47207.0,0.06491]
[1641168118307,0.33433567,47212.0,47207.0,0.24491]
[1641168118511,0.14033567,47222.0,47210.0,0.18]
[1641168118709,1.8344,47226.0,47220.0,0.18]
[1641168118909,0.80979385,47230.0,47222.0,0.02117607]
[1641168119112,0.80979385,47230.0,47226.0,0.02117404]
[1641168119910,0.34705451,47231.0,47226.0,0.02117404]
[1641168120310,0.34705451,47231.0,47226.0,0.21117404]
[1641168120510,0.34705451,47231.0,47226.0,0.19]
[1641168120720,0.18,47229.0,47226.0,0.19]
[1641168120913,0.12533408,47230.0,47226.0,0.19]
[1641168121310,0.14033567,47227.0,47226.0,0.19]
[1641168121511,0.16151764,47227.0,47226.0,0.19]
[1641168121814,0.14033567,47227.0,47226.0,0.19]
[1641168122210,0.14033567,47227.0,47218.0,0.02117769]
[1641168122211,0.12533408,47231.0,47223.0,0.18]
[1641168122412,0.145,47227.0,47226.0,0.368]
[1641168123112,0.145,47227.0,47226.0,0.369]
[1641168123914,0.12533408,47227.0,47226.0,0.181]
[1641168124314,0.12533408,47227.0,47226.0,0.374]
[1641168124715,0.12533408,47227.0,47226.0,0.373]
[1641168124916,0.12533408,47227.0,47226.0,0.374]
[1641168125113,0.12533408,47227.0,47226.0,0.373]
[1641168125316,0.14033567,47239.0,47226.0,0.374]
[1641168125514,0.14033567,47239.0,47238.0,0.18]
[1641168125715,1.61688619,47246.0,47238.0,0.29385725]
[1641168125915,0.02,47247.0,47244.0,0.18]
[1641168126115,0.02,47247.0,47244.0,1.289]
[1641168126414,1.76297342,47260.0,47245.0,0.009794]
[1641168126615,1.76297342,47260.0,47255.0,0.18]
[1641168126816,1.76297342,47260.0,47255.0,0.24122]
[1641168127014,1.76297342,47260.0,47256.0,0.09382436]
[1641168127215,1.72937342,47260.0,47256.0,0.09382436]
[1641168127417,3.47028904,47302.0,47259.0,1.289]
[1641168127617,2.04671523,47286.0,47273.0,0.18]
[1641168127821,2.04671523,47286.0,47257.0,0.8]
[1641168127822,1.75432734,47272.0,47261.0,1.108]
[1641168128016,1.75432734,47272.0,47271.0,0.18]
[1641168128219,1.75432734,47272.0,47271.0,0.10320395]
[1641168128417,1.75432734,47272.0,47271.0,0.08205]
[1641168128618,0.18,47277.0,47271.0,0.08205]
[1641168128835,1.36673477,47280.0,47271.0,0.08205]
[1641168129219,0.02115919,47278.0,47269.0,0.14033567]
[1641168129620,0.18,47275.0,47269.0,0.14033567]
[1641168130022,0.14033567,47279.0,47269.0,0.14033567]
[1641168130223,0.32033567,47279.0,47269.0,0.14033567]
[1641168130419,0.18,47278.0,47269.0,0.29533567]
[1641168130819,0.18,47275.0,47269.0,0.155]
[1641168131223,0.14033567,47272.0,47269.0,0.155]
[1641168131723,0.14033567,47272.0,47263.0,0.009794]
[1641168131923,0.18,47270.0,47263.0,0.009794]
[1641168132122,0.25841,47270.0,47263.0,0.009794]
[1641168132421,0.25841,47270.0,47263.0,0.180794]
[1641168132823,0.25841,47270.0,47263.0,0.171]
[1641168133221,0.14033567,47264.0,47263.0,0.171]
[1641168133623,0.14033567,47264.0,47257.0,0.009794]
[1641168134426,0.14033567,47264.0,47257.0,0.185794]
[1641168135724,0.14033567,47264.0,47257.0,0.009794]
[1641168136340,0.14033567,47264.0,47257.0,0.186794]
[1641168137642,0.14033567,47264.0,47257.0,0.009794]
[1641168138443,0.14033567,47264.0,47257.0,0.185794]
[1641168138943,0.21491842,47271.0,47261.0,0.18]
[1641168139142,0.30210033,47276.0,47264.0,0.18]
[1641168139342,0.30210033,47276.0,47267.0,0.02115582]
[1641168139543,0.36759678,47277.0,47271.0,0.001]
[1641168139745,0.14033567,47279.0,47271.0,0.08351]
[1641168140045,0.14033567,47279.0,47271.0,0.08251]
[1641168140443,0.14033567,47279.0,47271.0,0.27351]
[1641168140846,0.14033567,47279.0,47271.0,0.27451]
[1641168141647,0.14033567,47279.0,47271.0,0.08351]
[1641168142250,0.14033567,47279.0,47271.0,0.08251]
[1641168142447,0.14033567,47279.0,47271.0,0.19]
[1641168143249,0.14033567,47279.0,47271.0,0.191]
[1641168143649,0.14033567,47279.0,47276.0,0.18]
[1641168143848,0.20347989,47284.0,47274.0,0.009794]
[1641168144248,0.14033567,47286.0,47274.0,0.009794]
[1641168144451,0.14033567,47286.0,47274.0,0.186794]
[1641168145452,0.14033567,47286.0,47276.0,0.14033567]
[1641168146353,0.32033567,47286.0,47276.0,0.31133567]
[1641168146552,0.14033567,47286.0,47276.0,0.31133567]
[1641168147653,0.14033567,47286.0,47276.0,0.14033567]
[1641168148054,0.32033567,47286.0,47276.0,0.14033567]
[1641168148353,0.32033567,47286.0,47276.0,0.31133567]
[1641168149757,0.32033567,47286.0,47276.0,0.14033567]
[1641168150354,0.32033567,47286.0,47276.0,0.31133567]
[1641168151758,0.32033567,47286.0,47276.0,0.14033567]
[1641168152359,0.32033567,47286.0,47276.0,0.31133567]
[1641168152759,0.42297338,47285.0,47276.0,0.31133567]
[1641168152961,0.18,47281.0,47276.0,0.171]
[1641168153160,0.18,47277.0,47262.0,2.00825822]
[1641168153460,0.42309268,47271.0,47262.0,0.02115822]
[1641168153660,0.42309268,47271.0,47255.0,0.14033567]
[1641168153861,0.02116356,47268.0,47255.0,0.14033567]
[1641168154461,0.21116356,47268.0,47255.0,0.14033567]
[1641168155461,0.35149923,47268.0,47255.0,0.14033567]
[1641168155760,0.16149923,47268.0,47255.0,0.14033567]
[1641168155962,0.0001,47260.0,47255.0,0.14033567]
[1641168156164,0.07677,47260.0,47255.0,0.14033567]
[1641168158064,0.0902086,47259.0,47257.0,0.36073866]
[1641168159463,1.59449854,47260.0,47257.0,0.36073866]
[1641168159964,1.40149854,47260.0,47257.0,0.36073866]
[1641168160166,0.0902086,47259.0,47258.0,0.36073866]
[1641168161163,0.1519486,47259.0,47258.0,0.36073866]
[1641168161565,0.29228427,47259.0,47256.0,0.6012311]
[1641168161765,0.18,47257.0,47255.0,0.84172353]
[1641168161964,0.02116935,47256.0,47255.0,0.84172353]
[1641168162769,0.02116935,47256.0,47246.0,0.84172353]
[1641168163566,0.14033567,47254.0,47246.0,0.84172353]
[1641168163768,0.58634409,47247.0,47244.0,0.84172353]
[1641168163967,0.58634409,47247.0,47246.0,0.001]
[1641168164366,0.74434409,47247.0,47246.0,0.001]
[1641168164666,0.74434409,47247.0,47244.0,1.01972353]
[1641168165067,0.74434409,47247.0,47245.0,0.84172353]
[1641168165767,0.158,47247.0,47245.0,0.84172353]
[1641168166169,0.30309942,47246.0,47245.0,0.84172353]
[1641168166366,0.38699942,47246.0,47245.0,0.84172353]
[1641168166567,0.3658254,47246.0,47243.0,2.04506183]
[1641168166770,0.95216949,47246.0,47243.0,0.84172353]
[1641168166969,0.95216949,47246.0,47237.0,1.31661053]
[1641168167168,0.18,47238.0,47237.0,1.31661053]
[1641168167368,0.18,47242.0,47237.0,1.31661053]
[1641168168072,0.18,47242.0,47234.0,0.14033567]
[1641168168469,0.373,47242.0,47234.0,0.14033567]
[1641168169270,0.09024153,47241.0,47234.0,0.14033567]
[1641168169470,0.58504201,47236.0,47234.0,0.14033567]
[1641168170475,0.74504201,47236.0,47234.0,0.14033567]
[1641168170676,0.16,47236.0,47235.0,0.001]
[1641168170874,0.0955,47236.0,47235.0,0.001]
[1641168171673,0.58504201,47238.0,47234.0,0.14033567]
[1641168171873,0.09042,47236.0,47234.0,0.14033567]
[1641168172472,0.24242,47236.0,47234.0,0.14033567]
[1641168172673,0.24242,47236.0,47235.0,0.001]
[1641168172875,0.3510013,47239.0,47236.0,0.009794]
[1641168173073,0.18,47253.0,47238.0,1.288]
[1641168173276,0.14033567,47259.0,47238.0,1.288]
[1641168173673,0.14033567,47259.0,47246.0,0.14033567]
[1641168173872,1.40139854,47249.0,47246.0,0.22224567]
[1641168174374,1.40139854,47249.0,47246.0,0.41724567]
[1641168174775,0.60936119,47263.0,47248.0,0.18]
[1641168174974,1.8619,47265.0,47255.0,1.108]
[1641168175175,1.64337892,47266.0,47258.0,0.18]
[1641168175377,1.64337892,47266.0,47259.0,1.13895341]
[1641168175575,1.64337892,47266.0,47259.0,1.117794]
[1641168175779,1.64337892,47266.0,47265.0,0.14033567]
[1641168175976,0.0001,47270.0,47265.0,0.14033567]
[1641168176178,0.78646745,47267.0,47265.0,0.14033567]
[1641168176376,0.78646745,47267.0,47265.0,0.33133567]
[1641168176577,0.87341745,47267.0,47259.0,0.009794]
[1641168176977,0.08695,47267.0,47259.0,0.009794]
[1641168177380,0.08695,47267.0,47260.0,0.84128695]
[1641168178294,0.18,47266.0,47260.0,0.84128695]
[1641168178692,0.27019444,47266.0,47259.0,0.009794]
[1641168179493,0.09019444,47266.0,47259.0,0.009794]
[1641168179694,0.27019444,47266.0,47259.0,0.009794]
[1641168179896,1.40660989,47264.0,47259.0,0.009794]
[1641168180394,1.59860989,47264.0,47259.0,0.009794]
[1641168181599,0.09019444,47263.0,47259.0,0.009794]
[1641168182198,0.09019444,47263.0,47257.0,0.84128695]
[1641168182199,0.18,47260.0,47257.0,0.84128695]
[1641168182400,0.18,47260.0,47258.0,0.84128695]
[1641168182600,0.18,47259.0,47252.0,1.31661053]
[1641168182901,0.18,47254.0,47244.0,0.69704157]
[1641168183099,0.18,47250.0,47244.0,0.69704157]
[1641168183702,0.32033567,47250.0,47246.0,1.32318867]
[1641168184503,0.32033567,47250.0,47245.0,0.69704157]
[1641168184504,0.51433567,47250.0,47245.0,0.69704157]
[1641168184703,0.09019444,47249.0,47245.0,0.69704157]
[1641168184904,0.09019444,47249.0,47236.0,0.18]
[1641168185703,0.14033567,47245.0,47235.0,0.14033567]
[1641168186105,0.3509478,47238.0,47236.0,0.19202941]
[1641168186605,0.3509478,47238.0,47235.0,0.14033567]
[1641168187105,0.3509478,47238.0,47236.0,0.01202954]
[1641168187804,0.3509478,47238.0,47236.0,0.19202954]
[1641168188006,0.3509478,47238.0,47236.0,0.01202954]
[1641168188205,0.3509478,47238.0,47235.0,0.14033567]
[1641168188406,0.4289478,47238.0,47235.0,0.32033567]
[1641168188605,0.4289478,47238.0,47235.0,0.14033567]
[1641168188805,0.3509478,47237.0,47235.0,0.14033567]
[1641168189508,0.3509478,47237.0,47235.0,0.32033567]
[1641168189810,0.3509478,47236.0,47235.0,0.14033567]
[1641168190011,0.3509478,47236.0,47235.0,0.32033567]
[1641168190208,0.3509478,47236.0,47235.0,0.14033567]
[1641168190406,0.5663978,47236.0,47235.0,0.15236525]
[1641168190811,0.21545,47236.0,47235.0,0.14033567]
[1641168191412,0.143,47236.0,47235.0,0.14033567]
[1641168191608,0.14033567,47245.0,47235.0,0.14033567]
[1641168191609,1.28644679,47246.0,47235.0,1.24933567]
[1641168191807,1.28644679,47246.0,47245.0,1.24833567]
[1641168192011,1.28644679,47246.0,47245.0,1.52935422]
[1641168192209,0.14033567,47256.0,47245.0,1.52935422]
[1641168192210,0.14033567,47256.0,47245.0,1.35035422]
[1641168192508,0.14033567,47256.0,47248.0,1.108]
[1641168193813,0.14033567,47256.0,47251.0,0.84201529]
[1641168194212,0.18,47253.0,47251.0,0.84201529]
[1641168194412,0.02117067,47252.0,47251.0,1.02401529]
[1641168194613,0.02117067,47252.0,47251.0,0.182]
[1641168194813,0.02117067,47252.0,47245.0,0.14033567]
[1641168195117,0.02117067,47252.0,47243.0,1.44371285]
[1641168195714,0.66622765,47253.0,47243.0,1.44371285]
[1641168196015,0.14033567,47250.0,47244.0,0.18]
[1641168196218,0.14033567,47256.0,47247.0,0.18]
[1641168196514,0.189,47253.0,47247.0,1.288]
[1641168197115,0.189,47253.0,47245.0,0.009794]
[1641168197315,0.27582007,47253.0,47245.0,0.009794]
[1641168197514,0.27582007,47253.0,47238.0,1.58404852]
[1641168197714,0.27582007,47253.0,47238.0,1.60521729]
[1641168197715,0.06565,47253.0,47238.0,1.60521729]
[1641168197914,0.06565,47253.0,47247.0,0.14033567]
[1641168198515,0.19,47253.0,47247.0,0.14033567]
[1641168199814,0.14033567,47256.0,47247.0,0.14033567]
[1641168200014,0.14033567,47256.0,47247.0,2.45134859]
[1641168200415,0.33233567,47256.0,47247.0,2.45134859]
[1641168201323,0.33233567,47256.0,47249.0,1.108]
[1641168201720,0.14033567,47256.0,47254.0,0.36087879]
[1641168202321,0.16149949,47267.0,47254.0,0.36087879]
[1641168202524,0.19,47256.0,47254.0,0.36087879]
[1641168202822,0.19,47256.0,47255.0,0.36087879]
[1641168203022,0.19,47256.0,47255.0,0.42101879]
[1641168203826,0.02116518,47264.0,47255.0,0.42101879]
[1641168204022,0.32033567,47267.0,47255.0,0.42101879]
[1641168204223,0.32033567,47267.0,47254.0,1.108]
[1641168204423,0.18,47261.0,47253.0,0.15012967]
[1641168204723,0.18,47261.0,47253.0,1.35314259]
[1641168204922,0.18,47258.0,47253.0,1.35314259]
[1641168205124,0.21016518,47264.0,47253.0,1.35314259]
[1641168205324,0.21016518,47264.0,47256.0,0.36086016]
[1641168205523,0.18,47262.0,47256.0,0.36086016]
[1641168205723,0.18,47261.0,47256.0,0.36086016]
[1641168205923,0.14033567,47260.0,47256.0,0.36086016]
[1641168206123,0.18,47257.0,47256.0,0.36086016]
[1641168207423,1.82808886,47260.0,47256.0,0.36086016]
[1641168207824,0.18,47257.0,47256.0,0.36086016]
[1641168208323,1.77853815,47257.0,47254.0,0.36086016]
[1641168208624,1.59853815,47257.0,47254.0,0.36086016]
[1641168208827,1.77853815,47257.0,47254.0,0.36086016]
[1641168209025,0.09021504,47256.0,47253.0,0.36086016]
[1641168210426,0.27721504,47256.0,47253.0,0.36086016]
[1641168210826,0.18,47255.0,47253.0,0.36086016]
[1641168211233,1.68875319,47256.0,47252.0,0.36086016]
[1641168211627,0.18,47254.0,47252.0,0.36086016]
[1641168212429,0.185,47254.0,47252.0,0.36086016]
[1641168212628,0.09021504,47253.0,47251.0,0.6014336]
[1641168213328,1.29346037,47252.0,47251.0,0.6014336]
[1641168214429,1.47846037,47252.0,47251.0,0.7674336]
[1641168214829,0.185,47252.0,47251.0,0.7674336]
[1641168215731,1.38367541,47253.0,47251.0,0.6014336]
[1641168215931,0.09021504,47252.0,47251.0,0.6014336]
[1641168216331,0.27521504,47252.0,47251.0,0.7664336]
[1641168216935,0.185,47252.0,47251.0,0.165]
[1641168217433,0.185,47252.0,47251.0,0.174794]
[1641168217634,1.29346037,47253.0,47251.0,0.19595732]
[1641168217835,0.56346795,47267.0,47252.0,1.12916082]
[1641168218035,0.14033567,47267.0,47260.0,0.14033567]
[1641168219835,0.18,47263.0,47260.0,0.7416852]
[1641168220036,0.06378,47263.0,47260.0,0.60134953]
[1641168220434,0.17678,47263.0,47260.0,0.78934953]
[1641168220835,0.17678,47263.0,47260.0,0.188]
[1641168221434,0.113,47263.0,47260.0,0.188]
[1641168221638,0.02116501,47265.0,47256.0,0.60134953]
[1641168222037,0.18,47264.0,47256.0,0.60134953]
[1641168222236,0.18,47264.0,47255.0,0.61114353]
[1641168222437,0.18,47264.0,47256.0,0.183]
[1641168223037,0.18,47264.0,47256.0,0.78434953]
[1641168223237,0.17816501,47265.0,47256.0,0.78434953]
[1641168223441,0.18,47264.0,47256.0,0.78434953]
[1641168223640,0.17816501,47265.0,47256.0,0.78434953]
[1641168223841,1.41287261,47261.0,47256.0,0.60134953]
[1641168224442,1.41287261,47261.0,47256.0,0.79034953]
[1641168224640,1.29526202,47258.0,47256.0,0.79034953]
[1641168225441,1.29526202,47258.0,47256.0,0.189]